[Event "2nd Bieszczady Chess-ch A 2022"]
[Site "Bystre"]
[Date "2022.07.24"]
[Round "9.2"]
[White "Tymrakiewicz, Rafal"]
[Black "Kyc, Jerzy"]
[Result "1/2-1/2"]
[ECO "A45"]
[WhiteElo "2205"]
[BlackElo "2203"]
[Annotator "TA"]
[PlyCount "89"]
[EventDate "2022.07.17"]
[EventCountry "POL"]
[SourceTitle "playchess.com"]
[Source "ChessBase"]
[SourceQuality "1"]
[TimeControl "5400+30"]

{[%evp 9,89,9,29,13,46,41,54,37,41,12,46,43,47,25,50,45,48,45,54,54,72,62,61,57,106,66,70,66,72,72,71,47,62,62,61,14,15,22,25,16,17,-7,0,0,0,0,0,0,0,0,0,-13,-2,-54,-45,-58,-55,-55,-30,-30,-30,-30,-30,-77,0,0,0,0,0,0,0,-30,0,-7,0,0,0,0,0,0,0,0]} 1. d4 {[%emt 0:00:03]} Nf6 {[%emt 0:02:56]} 2. Bg5 {[%emt 0:06:35]} Ne4 {[%emt 0:01:10]} 3. Bf4 {[%emt 0:00:14]} d5 {[%emt 0:00:54]} 4. e3 {[%emt 0:00:08]} c5 {[%emt 0:00:59]} 5. Bd3 {[%emt 0:00:44]} cxd4 {[%emt 0:01:48]} 6. exd4 {[%emt 0:00:42] A45: Trompowsky Attack.} Nf6 {[%emt 0:00:41]} 7. c3 {[%emt 0:03:46]} Nc6 {[%emt 0:00:52]} 8. h3 {[%emt 0:03:04] White is slightly better.} e6 {[%emt 0:02:59]} 9. Nf3 {[%emt 0:04:22]} Bd6 {[%emt 0:00:25]} 10. Bxd6 {[%emt 0:02:01]} Qxd6 {[%emt 0:00:06]} 11. O-O {[%emt 0:00:58]} O-O {[%emt 0:00:53]} 12. Re1 {[%emt 0:02:10]} (12. Nbd2 {seems wilder.} Nh5 13. Ng5 Nf6 14. Re1) 12... a6 {[%emt 0:02:05] [#]} 13. a4 $146 {[%emt 0:02:28]} ({Predecessor:} 13. Ne5 Nd7 14. Nxd7 Bxd7 15. Nd2 Rfc8 16. Nf3 b5 17. Ne5 b4 18. Bxh7+ Kf8 19. Qf3 Nxe5 20. dxe5 {½-½ (47) Pastuszko,K (1804)-Chmielecka,A (1440) Suwalki 2011}) 13... b6 {[%emt 0:24:40]} 14. Nbd2 {[%emt 0:02:02]} h6 {[%emt 0:11:23]} 15. Ne5 {[%emt 0:09:14]} Nd7 {[%emt 0:00:22]} 16. f4 {[%emt 0:10:05] 0x0.0002dee43c66dp-1022s more active pieces. The black rooks are badly placed.} f5 {[%emt 0:09:11]} (16... Qc7 $14) 17. Nxd7 {[%emt 0:08:00]} (17. Ng6 {is interesting.} Rf7 18. Nf3 Nf6 19. Nfe5) 17... Bxd7 {[%emt 0:00:41]} 18. Rf1 {[%emt 0:00:48]} Ra7 {[%emt 0:08:55]} 19. Qe2 {[%emt 0:02:48]} a5 {[%emt 0:02:27]} 20. g3 {[%emt 0:03:43]} Bc8 {[%emt 0:02:21]} 21. Nf3 {[%emt 0:04:28]} g5 {[%emt 0:01:54]} 22. Ne5 {[%emt 0:01:11]} (22. Kh1 $14 {is more appropriate.}) 22... Nxe5 $11 {[%emt 0:00:11]} 23. fxe5 {[%emt 0:14:22]} Qe7 {[%emt 0:00:29]} 24. Kg2 {[%emt 0:05:58]} Bd7 {[%emt 0:00:54]} 25. Bb5 {[%emt 0:03:59]} (25. h4 {feels hotter.} gxh4 26. Rh1 Be8 27. Rxh4 Qg5 28. Rah1) 25... Rc7 {[%emt 0:02:51]} 26. Rf2 {[%emt 0:00:21]} Bxb5 {[%emt 0:00:23]} 27. Qxb5 {[%emt 0:00:16]} Rb8 {[%emt 0:00:41]} 28. Raf1 {[%emt 0:00:55]} Qd7 {[%emt 0:01:18]} 29. Qd3 {[%emt 0:01:06] [#] Threatens to win with g4.} Qh7 {[%emt 0:00:58]} (29... Qxa4 $2 30. g4 $18) 30. Rc1 {[%emt 0:05:11]} h5 {[%emt 0:01:08][%cal Bh6h5,Bh5h4][%mdl 32]} 31. Rcf1 {[%emt 0:01:28]} (31. c4 $11) 31... h4 $15 {[%emt 0:00:59]} 32. g4 {[%emt 0:00:57]} f4 {[%emt 0:00:08]} 33. Qxh7+ {[%emt 0:00:26]} Kxh7 {[%emt 0:00:21][%mdl 4096] Endgame KRR-KRR} 34. Ra1 {[%emt 0:00:05]} b5 {[%emt 0:00:38]} 35. axb5 {[%emt 0:00:26]} Rxb5 {[%emt 0:00:01]} 36. Ra2 {[%emt 0:01:23]} (36. Kf1 $11) 36... Rc4 {[%emt 0:01:15]} (36... Rcb7 $17) 37. Kf1 {[%emt 0:00:26]} a4 {[%emt 0:01:42]} 38. Rc2 {[%emt 0:00:42]} Rb3 {[%emt 0:02:45]} 39. Ke2 {[%emt 0:00:59]} Kg7 {[%emt 0:01:54]} 40. Kd3 {[%emt 0:00:00]} Kf7 {[%emt 0:00:00]} (40... Rcb4 $5) 41. Rc1 {[%emt 0:00:00] The position is equal.} a3 {[%emt 0:00:00]} 42. bxa3 {[%emt 0:00:55]} Ra4 {[%emt 0:00:00]} 43. Rca1 {[%emt 0:00:10]} Rc4 {[%emt 0:00:00]} 44. Rc1 {[%emt 0:00:22]} Ra4 {[%emt 0:00:00]} 45. Rca1 {[%emt 0:00:04] Weighted Error Value: White=0.12 (very precise) /Black=0.09 (flawless)} 1/2-1/2

[Event "2nd Bieszczady Chess-ch A 2022"]
[Site "Bystre"]
[Date "2022.07.24"]
[Round "9.3"]
[White "Marszalek, Maciej"]
[Black "Karvatskyi, Oleksii"]
[Result "1-0"]
[ECO "A36"]
[WhiteElo "2268"]
[BlackElo "1804"]
[Annotator "TA"]
[PlyCount "71"]
[EventDate "2022.07.17"]
[EventCountry "POL"]
[SourceTitle "playchess.com"]
[Source "ChessBase"]
[SourceQuality "1"]
[TimeControl "5400+30"]

{[%evp 21,71,12,21,1,63,0,22,-7,0,0,0,0,0,-2,0,-15,-17,-31,-24,-34,6,12,24,0,110,100,168,166,479,480,479,477,466,466,443,249,241,226,374,244,393,384,387,333,544,539,534,529,1160,638,601,554]} 1. c4 {[%emt 0:00:05]} c5 {[%emt 0:00:11]} 2. Nc3 {[%emt 0:00:06]} Nc6 {[%emt 0:00:05]} 3. g3 {[%emt 0:00:05]} g6 {[%emt 0:00:00]} 4. Bg2 {[%emt 0:00:08]} Bg7 {[%emt 0:00:08]} 5. e4 {[%emt 0:01:05]} e5 {[%emt 0:00:57]} 6. Nge2 {[%emt 0:01:17]} Nge7 {[%emt 0:00:12]} 7. d3 {[%emt 0:00:19]} d6 {[%emt 0:00:06]} 8. O-O {[%emt 0:00:21]} O-O {[%emt 0:00:06]} 9. a3 {[%emt 0:01:02]} Be6 {[%emt 0:01:26]} 10. Rb1 {[%emt 0:00:28]} Qd7 {[%emt 0:01:29] 10...Qd7 is better than 10...a5.} 11. b4 {[%emt 0:00:35]} Nd4 {[%emt 0:05:57]} 12. bxc5 {[%emt 0:05:01] A36: Symmetrical English vs ...g6: 4 Bg2 Bg7.} dxc5 {[%emt 0:01:32]} (12... Nxe2+ $1 $11 13. Qxe2 dxc5) 13. Nd5 {[%emt 0:02:05]} (13. Nxd4 $14 exd4 14. Nd5) 13... Nec6 {[%emt 0:01:17] [#]} 14. Nec3 $146 {[%emt 0:01:58] The position is equal.} ({Predecessor:} 14. Nxd4 Nxd4 15. Be3 b6 16. Bxd4 cxd4 17. a4 f6 18. Rb5 Rf7 19. a5 bxa5 20. Qa4 {½-½ (51) Leveque,S (2109)-Grimaldi,P (1910) Campobasso 2005}) 14... f5 {[%emt 0:02:44]} 15. exf5 {[%emt 0:05:39]} Bxf5 {[%emt 0:04:48]} 16. Be3 {[%emt 0:05:46]} Rab8 {[%emt 0:05:19]} 17. Ne4 {[%emt 0:09:20]} b6 {[%emt 0:01:53]} 18. Kh1 {[%emt 0:09:52]} Bg4 {[%emt 0:01:47]} 19. f3 {[%emt 0:00:26][%cal Bf2f3,Bf3f4][%mdl 32]} Be6 {[%emt 0:00:12]} 20. f4 {[%emt 0:02:30]} Bxd5 {[%emt 0:01:03]} 21. cxd5 {[%emt 0:00:07] Qa4 is the strong threat.} Ne7 {[%emt 0:00:12]} 22. fxe5 {[%emt 0:11:06]} (22. Bxd4 $5 exd4 23. d6 $14) 22... Nxd5 {[%emt 0:03:46]} (22... Bxe5 $11 23. Bh6 Bg7) 23. Bxd4 $16 {[%emt 0:05:37]} cxd4 {[%emt 0:01:24] [#]} (23... Rxf1+ $16 24. Qxf1 cxd4) 24. Qb3 $1 $18 {[%emt 0:03:06]} Bxe5 {[%emt 0:02:45] [#]} (24... Kh8) 25. Ng5 $1 {[%emt 0:00:27]} Rbd8 {[%emt 0:01:22]} 26. Rxf8+ {[%emt 0:02:24]} Kxf8 {[%emt 0:00:04]} 27. Rf1+ {[%emt 0:00:12]} ({Not} 27. Bh3 Qd6 28. Ne6+ Ke7 $18) 27... Nf6 {[%emt 0:00:53]} (27... Kg8 $2 28. Nf7 Rf8 29. Nxe5 $18) 28. Ne6+ {[%emt 0:00:31]} (28. Kg1 $142) 28... Ke7 {[%emt 0:00:09]} 29. Nxd8 {[%emt 0:00:18]} Kxd8 {[%emt 0:00:11]} (29... Qxd8 $142 30. Re1 Qd6) 30. a4 {[%emt 0:01:47]} Qd6 {[%emt 0:03:17]} (30... Ke7 $142 31. a5 Qe6) 31. Qf7 {[%emt 0:01:10]} Qe7 {[%emt 0:00:18]} 32. Qc4 {[%emt 0:02:02] Hoping for Qc6.} Qc7 {[%emt 0:00:25]} (32... Qd6 {was worth a try.} 33. a5 Ke7 34. axb6 axb6) 33. Qe6 {[%emt 0:00:19] White is clearly winning.} Qe7 {[%emt 0:00:12]} 34. Qc6 {[%emt 0:00:05]} Nd7 {[%emt 0:01:26]} 35. Bh3 {[%emt 0:00:27][%cal Of1f8] White threatens Rf8+! and mate.} Qd6 {[%emt 0:00:33] Against Rf8+} 36. Bxd7 {[%emt 0:00:24] Weighted Error Value: White=0.37/Black=0.57} 1-0

[Event "2nd Bieszczady Chess-ch A 2022"]
[Site "Bystre"]
[Date "2022.07.24"]
[Round "9.4"]
[White "Sygulski, Piotr"]
[Black "Lewtak, Damian"]
[Result "0-1"]
[ECO "A47"]
[WhiteElo "2013"]
[BlackElo "2397"]
[Annotator "TA"]
[PlyCount "76"]
[EventDate "2022.07.17"]
[EventCountry "POL"]
[SourceTitle "playchess.com"]
[Source "ChessBase"]
[SourceQuality "1"]
[TimeControl "5400+30"]

{[%evp 16,76,18,13,18,17,21,20,23,20,21,25,27,22,45,18,37,14,32,30,42,37,44,0,0,0,0,0,0,-2,0,-19,6,0,0,-91,-39,-42,-27,-118,-83,-116,-64,-170,-158,-249,-247,-252,-244,-345,-350,-368,-366,-366,-235,-236,-235,-237,-235,-220,-202,-208,-182]} 1. d4 {[%emt 0:02:05]} Nf6 {[%emt 0:00:37]} 2. Nf3 {[%emt 0:00:03]} b6 {[%emt 0:00:08]} 3. g3 {[%emt 0:00:20]} Bb7 {[%emt 0:00:19]} 4. Bg2 {[%emt 0:00:05]} e6 {[%emt 0:01:02]} 5. O-O {[%emt 0:02:09]} g6 {[%emt 0:00:42]} 6. b3 {[%emt 0:00:41]} Bg7 {[%emt 0:00:13]} 7. Bb2 {[%emt 0:00:11]} O-O {[%emt 0:00:27]} 8. c4 {[%emt 0:02:17]} d6 {[%emt 0:00:55]} 9. Nc3 {[%emt 0:02:18]} Ne4 {[%emt 0:01:59] A15: English Opening: 1...Nf6.} 10. Qc2 {[%emt 0:03:11]} Nxc3 {[%emt 0:00:07]} 11. Bxc3 {[%emt 0:00:15]} Nd7 {[%emt 0:00:07] The position is equal.} 12. e4 {[%emt 0:04:18]} Qe7 {[%emt 0:00:42]} 13. Rfe1 {[%emt 0:01:50]} a5 {[%emt 0:03:25] [#]} 14. a3 $146 {[%emt 0:03:25]} ({Predecessor:} 14. Rad1 Rfd8 15. h3 Rac8 16. Kh2 c5 17. d5 Bxc3 18. Qxc3 e5 19. Nd2 a4 20. f4 {0-1 (45) Terry,R (2463)-Chigaev,M (2559) Chess.com INT 2017}) 14... c5 {[%emt 0:01:23]} 15. a4 {[%emt 0:06:34]} Rad8 {[%emt 0:02:35]} 16. Rad1 {[%emt 0:00:50]} Nb8 {[%emt 0:03:25]} 17. d5 {[%emt 0:08:31]} Bxc3 {[%emt 0:01:02]} 18. Qxc3 {[%emt 0:00:02]} e5 {[%emt 0:00:13]} 19. Nh4 {[%emt 0:03:00]} Bc8 {[%emt 0:00:29]} 20. Rf1 {[%emt 0:05:25]} Rde8 {[%emt 0:06:11][%cal Bd8e8,Be8e7,Be7f7][%mdl 32]} 21. Rde1 {[%emt 0:09:47]} Qd8 {[%emt 0:05:07]} 22. Qd2 {[%emt 0:01:52]} Qf6 {[%emt 0:02:38]} 23. Qh6 {[%emt 0:02:49]} Re7 {[%emt 0:01:51]} 24. f3 {[%emt 0:03:19]} Rfe8 {[%emt 0:02:44]} 25. g4 {[%emt 0:02:34] [#]} (25. f4 $11) 25... Qg7 {[%emt 0:03:08]} (25... Qf4 $1 $17 {[%cal Rf4h6]} 26. Qxf4 exf4) 26. Qd2 $15 {[%emt 0:03:31]} f5 {[%emt 0:02:14]} 27. h3 {[%emt 0:06:31]} ({Of course not} 27. gxf5 g5 28. f6 Qxf6 $17) (27. exf5 $11 {keeps the balance.} g5 28. f4 (28. f6 Qxf6 29. Nf5 Bxf5 $17) 28... gxh4 29. f6 Qxf6 30. fxe5) 27... Rf7 {[%emt 0:05:31]} 28. Re2 {[%emt 0:05:39]} Ref8 {[%emt 0:01:06]} (28... f4 $17 {And now ...Qf6 would win.} 29. Rd1 Na6) 29. Ref2 {[%emt 0:00:33]} ({White should play} 29. Rff2 $15) 29... f4 $19 {[%emt 0:04:40] ...Qf6 is the strong threat.} 30. Re2 {[%emt 0:01:58]} (30. Bh1 $17) 30... Qf6 {[%emt 0:03:32]} 31. Qe1 {[%emt 0:00:06] [#]} h5 $1 {[%emt 0:03:07]} 32. g5 {[%emt 0:02:02]} (32. gxh5 {was worth a try.} gxh5 33. Nf5) 32... Qxg5 {[%emt 0:01:46]} 33. Kh2 {[%emt 0:00:10]} Rg7 {[%emt 0:00:26]} 34. Rg1 {[%emt 0:00:33]} Qg3+ {[%emt 0:02:16]} 35. Qxg3 {[%emt 0:00:06] Black is clearly better.} fxg3+ {[%emt 0:00:04]} 36. Kxg3 {[%emt 0:00:51]} g5 {[%emt 0:00:06]} 37. Nf5 {[%emt 0:00:10]} Bxf5 {[%emt 0:00:06]} 38. exf5 {[%emt 0:00:01]} Rxf5 {[%emt 0:00:09] Weighted Error Value: White=0.31/Black=0.12 (very precise)} 0-1

[Event "2nd Bieszczady Chess-ch A 2022"]
[Site "Bystre"]
[Date "2022.07.24"]
[Round "9.5"]
[White "Wilk, Tomasz"]
[Black "Hnatyshyn, Anastasiia"]
[Result "0-1"]
[ECO "B31"]
[WhiteElo "1900"]
[BlackElo "1931"]
[Annotator "TA"]
[PlyCount "60"]
[EventDate "2022.07.17"]
[EventCountry "POL"]
[SourceTitle "playchess.com"]
[Source "ChessBase"]
[SourceQuality "1"]
[TimeControl "5400+30"]

{[%evp 11,60,13,22,25,25,27,23,12,0,5,20,12,33,26,50,47,61,42,41,39,60,55,42,53,53,58,47,0,87,69,66,39,54,47,58,52,52,-77,-76,-79,-81,-567,-555,-537,-543,-656,-657,-29985,-29985,-29988,-29985]} 1. e4 {[%emt 0:00:03]} c5 {[%emt 0:00:05]} 2. Nf3 {[%emt 0:01:04]} Nc6 {[%emt 0:00:07]} 3. Bb5 {[%emt 0:00:04]} g6 {[%emt 0:00:07]} 4. Bxc6 {[%emt 0:00:08]} dxc6 {[%emt 0:00:05]} 5. d3 {[%emt 0:01:11]} Bg7 {[%emt 0:00:11]} 6. h3 {[%emt 0:01:35]} Nf6 {[%emt 0:00:35]} 7. a4 {[%emt 0:03:27] B31: Sicilian: 2...Nc6 3 Bb5 g6.} a5 {[%emt 0:05:30]} 8. Be3 {[%emt 0:03:20]} b6 {[%emt 0:00:27]} 9. Nbd2 {[%emt 0:01:36] [#] White has an edge.} O-O $146 {[%emt 0:03:00]} ({Predecessor:} 9... Ba6 10. O-O O-O 11. Rb1 Nd7 12. b3 b5 13. Re1 Qc7 14. Nf1 Qd6 15. Qd2 c4 16. bxc4 bxc4 {1-0 (44) Mahip,S (1599)-Castillo Rivera,C (1841) Tornelo INT 2021}) 10. Nc4 {[%emt 0:02:34]} Ne8 {[%emt 0:02:10]} 11. Rb1 {[%emt 0:02:32]} Ba6 {[%emt 0:04:26]} 12. b3 {[%emt 0:03:54]} Bxc4 {[%emt 0:06:04]} 13. bxc4 {[%emt 0:00:19]} Rb8 {[%emt 0:00:17]} 14. Qd2 {[%emt 0:04:17]} Nc7 {[%emt 0:01:07]} 15. Bh6 {[%emt 0:05:02]} Ne6 {[%emt 0:10:07]} 16. h4 {[%emt 0:03:30]} Bxh6 {[%emt 0:11:17]} 17. Qxh6 {[%emt 0:00:05] White threatens Ng5 and mate.} f6 {[%emt 0:00:07][%cal Ob6b5] Against Ng5} 18. O-O {[%emt 0:03:03]} Qd7 {[%emt 0:06:18]} 19. Qd2 {[%emt 0:01:59]} (19. e5) (19. e5 $14 {feels stronger.}) 19... g5 {[%emt 0:06:46]} (19... b5 $11 {remains equal.}) 20. hxg5 $16 {[%emt 0:05:40]} fxg5 {[%emt 0:00:18]} 21. Ne5 {[%emt 0:01:57]} Qd6 {[%emt 0:08:50]} 22. Ng4 {[%emt 0:00:36]} Kh8 {[%emt 0:01:57]} 23. Ne3 {[%emt 0:06:38]} Qf4 {[%emt 0:05:37]} 24. g3 {[%emt 0:01:11] [#]} (24. Qd1 $14 {stays ahead.}) 24... Nd4 $1 $17 {[%emt 0:00:37] ...Nf3+ is the strong threat.} 25. Qd1 {[%emt 0:02:02] [#]} (25. gxf4 Nf3+) 25... Qf3 {[%emt 0:04:22] 0x0.001f2478819bdp-1022s more active pieces.} 26. Nf5 $2 {[%emt 0:00:52][%mdl 8192] Now White is beyond hope.} (26. Qxf3 $17 Nxf3+ 27. Kg2) 26... Ne2+ $19 {[%emt 0:00:27]} 27. Kh2 {[%emt 0:00:07]} e6 {[%emt 0:01:13][%cal Be7e6,Be6f5,Bf5f4][%mdl 32]} 28. Rxb6 {[%emt 0:07:01]} exf5 {[%emt 0:04:38]} ({Weaker is} 28... Rxb6 29. Qa1+ Nd4 30. Nxd4 $11) ({Stronger than} 28... Qh5+ 29. Kg2 Nf4+ 30. gxf4 $19) 29. Rxc6 {[%emt 0:00:57]} f4 {[%emt 0:00:48]} 30. Qa1+ {[%emt 0:00:53]} Kg8 {[%emt 0:03:29] Weighted Error Value: White=0.70/Black=0.07 (flawless)} 0-1